Cogmind - Beta 15 @@@ ROGUE MODE // 2025.07.27 @ 12:10:21 Player: LightKnight Result: Self-destructed Performance ------------- Evolutions (6) 3000 Regions Visited (18) 3600 Robots Destroyed (193) 965 Value Destroyed (9218) 9218 Prototype IDs (44) 880 Alien Tech Used (0) 0 Bonus (8402) 8402 TOTAL SCORE: 26065 Bonus ------- High Alert Combat Kills 1183 Follower Combat Kills 1171 Entered Garrisons 1400 Used RIF Installer 4500 Aligned with FarCom 300 Friendly Fire -152 Cogmind --------- Core Integrity 858/1150 Matter 272/300 Energy 190/190 System Corruption 0% Temperature Cool (0) Movement Treading (240) Ox1 Location -4/Garrison Parts ------- > --- POWER (1) -------- Light Quantum Reactor > --- PROPULSION (4) --- Improved Heavy Treads Improved Heavy Treads > --- UTILITY (11) ----- Cargo Storage Unit Enhanced Optical Array Advanced Targeting Computer Relay Coupler [NC] (37) Relay Coupler [Swarmer] (39) Relay Coupler [Grunt] (11) Relay Coupler [Brawler] (36) Relay Coupler [Sentry] (7) > --- WEAPON (3) ------- (None) > --- INVENTORY (30) --- Improved Heavy Treads Carbon-fiber Leg Carbon-fiber Leg Biometal Leg Biometal Leg High-capacity Storage Unit Relay Coupler [NC] (37) Relay Coupler [NC] (38) Relay Coupler [Swarmer] (39) Relay Coupler [Grunt] (31) Relay Coupler [Grunt] (41) Relay Coupler [Grunt] (39) Relay Coupler [Grunt] (38) Relay Coupler [Duelist] (37) Relay Coupler [Sentry] (27) Relay Coupler [Sentry] (32) Relay Coupler [Specialist] (28) Relay Coupler [Hunter] (20) Relay Coupler [Hunter] (25) Relay Coupler [Hunter] (25) Relay Coupler [Heavy] (19) Relay Coupler [Proto] (15) Relay Coupler [Proto] (15) Relay Coupler [Proto] (15) Proton Missile Launcher Peak State ------------ > --- POWER ------------ Light Antimatter Reactor > --- PROPULSION ------- Improved Heavy Treads Improved Heavy Treads > --- UTILITY ---------- Cargo Storage Unit Enhanced Optical Array Advanced Targeting Computer Improved Medium Armor Plating Relay Coupler [NC] Relay Coupler [Swarmer] Relay Coupler [Grunt] Relay Coupler [Sentry] > --- WEAPON ----------- Guided Plasma Cannon KE Penetrator Remote Datajack > --- INVENTORY -------- Light Quantum Reactor Improved Heavy Treads Improved Heavy Treads Carbon-fiber Leg Carbon-fiber Leg Biometal Leg Biometal Leg High-capacity Storage Unit Relay Coupler [NC] Relay Coupler [NC] Relay Coupler [Grunt] Relay Coupler [Grunt] Relay Coupler [Grunt] Relay Coupler [Brawler] Relay Coupler [Duelist] Relay Coupler [Specialist] Relay Coupler [Hunter] Relay Coupler [Hunter] Relay Coupler [Hunter] Relay Coupler [Heavy] Relay Coupler [Proto] Relay Coupler [Proto] Relay Coupler [Proto] Gauss Rifle Proton Missile Launcher Missile Launcher Improved Datajack [Rating: 92] Favorites ----------- Power Heavy Deuterium Engine Engine Heavy Deuterium Engine Power Core Light Nuclear Core Reactor Light Antimatter Reactor Propulsion Light Treads Treads Light Treads Leg Biometal Leg Utility Large Storage Unit Device Improved Heat Sink Storage Large Storage Unit Processor Enhanced Optical Array Hackware Relay Coupler [NC] Protection Hardened Light Armor Plating Weapon Gauss Rifle Energy Gun Advanced Beam Rifle Energy Cannon Cooled Particle Cannon Ballistic Gun Gauss Rifle Launcher Missile Launcher Special Weapon Remote Datajack Special Melee Weapon Improved Datajack Build | -11 -10 -10 -10 -9 -8 -8 -8 -8 -7 -7 -6 -6 -6 -6 -5 -5 -4 -4 ------- Run | Yrd Mat Min Exi Min Mat Gar Mat Gar Fac Gar Fac Gar Fac Gar Fac Gar Fac Gar Slots Evolved 12 | . . . . . 4 . . . 2 . 2 . . . 2 . 2 . Power . | . . . . . . . . . . . . . . . . . . . Propulsion 2 | . . . . . 1 . . . . . . . . . 1 . . . Utility 9 | . . . . . 2 . . . 2 . 2 . . . 1 . 2 . Weapon 1 | . . . . . 1 . . . . . . . . . . . . . Parts Attached 109 | . 20 . . . 5 9 13 9 2 9 10 4 2 15 2 6 3 . Power 13 | . 5 . . . 1 2 2 1 . . . 1 . . . 1 . . Engine 10 | . 5 . . . 1 1 2 1 . . . . . . . . . . Core 1 | . . . . . . 1 . . . . . . . . . . . . Reactor 2 | . . . . . . . . . . . . 1 . . . 1 . . Propulsion 27 | . 2 . . . 1 3 3 2 . 2 1 3 2 5 1 . 2 . Treads 22 | . 2 . . . 1 3 3 2 . 2 1 3 1 1 1 . 2 . Leg 5 | . . . . . . . . . . . . . 1 4 . . . . Wheel . | . . . . . . . . . . . . . . . . . . . Hover . | . . . . . . . . . . . . . . . . . . . Flight . | . . . . . . . . . . . . . . . . . . . Utility 36 | . 3 . . . 2 3 2 4 2 5 4 . . 6 1 3 1 . Device 12 | . . . . . 2 1 2 1 . 3 1 . . 2 . . . . Storage 3 | . 2 . . . . . . . . . . . . 1 . . . . Processor 4 | . . . . . . . . 1 1 . 2 . . . . . . . Hackware 11 | . . . . . . 1 . 1 . 1 1 . . 3 1 2 1 . Protection 6 | . 1 . . . . 1 . 1 1 1 . . . . . 1 . . Artifact . | . . . . . . . . . . . . . . . . . . . Weapon 33 | . 10 . . . 1 1 6 2 . 2 5 . . 4 . 2 . . Energy Gun 6 | . 1 . . . 1 . 1 . . 1 1 . . 1 . . . . Energy Cannon 7 | . 3 . . . . . 1 . . . 3 . . . . . . . Ballistic Gun 12 | . 4 . . . . . 3 1 . . 1 . . 2 . 1 . . Ballistic Cannon . | . . . . . . . . . . . . . . . . . . . Launcher 5 | . 1 . . . . 1 . 1 . 1 . . . . . 1 . . Special Weapon 1 | . . . . . . . . . . . . . . 1 . . . . Impact Weapon . | . . . . . . . . . . . . . . . . . . . Slashing Weapon . | . . . . . . . . . . . . . . . . . . . Piercing Weapon . | . . . . . . . . . . . . . . . . . . . Special Melee Weapon 2 | . 1 . . . . . 1 . . . . . . . . . . . Unidentified Prototypes 3 | . . . . . . . 1 . . . 1 . 1 . . . . . Parts Lost 49 | . 3 2 . . . 9 . 6 . 5 1 6 . 6 . 5 5 1 Power 8 | . 3 . . . . 2 . 1 . . . 1 . . . 1 . . Propulsion 12 | . . . . . . 3 . 1 . 2 . 3 . 2 . . 1 . Utility 10 | . . . . . . 1 . 2 . 2 . 1 . 1 . 2 1 . Weapon 19 | . . 2 . . . 3 . 2 . 1 1 1 . 3 . 2 3 1 Highest Loss Streak 4 | . 1 2 . . . 4 . 3 . 2 1 4 . 1 . 2 4 1 To Critical Strikes 1 | . . . . . . 1 . . . . . . . . . . . . Average Backups 16 | . 12 14 14 15 12 11 14 13 15 14 14 13 13 17 24 24 26 25 Power . | . . 1 1 2 2 1 1 . . . 1 1 1 1 1 . . . Propulsion 3 | . . 1 3 3 2 1 3 4 5 4 4 2 1 1 6 6 5 5 Utility 6 | . 2 4 3 3 2 2 5 5 5 4 3 4 6 10 14 15 19 19 Weapon 4 | . 7 7 6 6 5 4 4 2 4 4 6 4 4 3 2 1 2 1 Tool/Special . | . . . . . . . . . . . . . . . . . . . Unused Backups 40 | . 3 1 2 . . . 7 . 1 1 1 . . 4 . . . 20 Power 4 | . . . . . . . 2 . . . 1 . . 1 . . . . Propulsion 6 | . . . . . . . 3 . . 1 . . . . . . . 2 Utility 21 | . . . 1 . . . . . 1 . . . . 1 . . . 18 Weapon 9 | . 3 1 1 . . . 2 . . . . . . 2 . . . . Tool/Special . | . . . . . . . . . . . . . . . . . . . Average Slot Usage (%) 94 | . 97 99 100 100 90 98 99 99 84 94 99 95 92 90 70 79 74 57 Engine 7 | . 13 14 14 14 9 7 5 9 7 7 6 5 . . . . . . Reactor 1 | . . . . . . . . . . . . . 6 6 5 5 5 5 Treads 20 | . 25 28 28 28 26 26 27 27 23 23 20 19 19 4 11 11 10 10 Leg 1 | . 2 . . . . . . . . . . . . 13 . . . . Device 7 | . . . . . 9 16 9 16 10 10 13 13 13 9 . . . . Storage 8 | . 14 14 14 14 9 9 9 9 7 7 6 6 6 6 5 5 5 5 Processor 5 | . . . . . . . . 4 . . 9 13 13 13 11 11 10 10 Hackware 9 | . . . . . . 1 9 5 7 14 15 13 13 17 17 23 29 26 Protection 6 | . 12 14 14 14 9 9 9 . 3 6 6 2 . . . 2 . . Energy Gun 2 | . . . . . . 6 1 6 7 9 6 3 . . . . . . Energy Cannon 7 | . 11 13 7 14 9 8 1 . . 1 12 12 13 5 4 3 . . Ballistic Gun 10 | . 14 9 14 14 18 9 23 19 15 9 . . . 7 5 7 8 . Peak Build Rating 92 | . 12 12 13 13 27 27 42 44 47 49 51 53 60 81 85 92 89 81 Average Rating 41 | . 11 11 12 13 17 24 37 40 41 42 50 48 50 65 81 88 86 75 On Entrance 38 | 6 6 12 12 13 13 27 25 42 40 47 38 50 50 50 62 85 88 74 Naked Turns . | . . . . . . . . . . . . . . . . . . . Heaviest Build 181 | 11 57 37 37 37 46 48 52 52 60 65 54 57 54 159 169 181 165 165 Greatest Support 150 | 20 40 40 40 40 60 60 60 60 60 60 60 60 60 81 150 150 150 150 Greatest Overweight (x) 2 | . 1 . . . . . . . . 2 . 1 1 2 1 1 1 1 Average Overweight (x) . | . . . . . . . . . . . . . . . 1 1 1 1 Largest Inventory Capacity 30 | . 20 15 15 15 15 15 15 15 15 15 15 15 15 30 30 30 30 30 Average Capacity 17 | . 17 15 15 15 15 15 15 15 15 15 15 15 15 18 30 30 30 30 Most Carried 30 | . 15 15 15 15 14 15 15 15 15 15 15 14 15 30 28 30 30 27 Average Carried 16 | . 12 14 14 14 12 11 14 13 14 14 14 13 13 18 26 26 28 26 Final Capacity 30 | 8 15 15 15 15 15 15 15 15 15 15 15 15 15 30 30 30 30 30 Final Carried 30 | 6 15 15 15 15 13 14 15 15 15 15 14 13 13 30 26 30 27 26 Class Distribution -------------------- 28% | Mutant 25% | Bothacker-Skirmisher 13% | Botlord-Skirmisher 9% | Botlord-Mutant 4% | Commander-Skirmisher 4% | Scavenger-Skirmisher 4% | Scavenger-Gunner 3% | Botlord-Tank 3% | Bothacker-Mutant Dominant Class ---------------- Mutant | -10/Materials Mutant | -10/Mines Mutant | -10/Exiles Mutant | -9/Mines Skirmisher | -8/Materials Scavenger-Skirmisher | -8/Garrison Bothacker-Skirmisher | -8/Materials Scavenger-Gunner | -8/Garrison Commander-Skirmisher | -7/Factory Bothacker-Skirmisher | -7/Garrison Bothacker-Skirmisher | -6/Factory Bothacker-Skirmisher | -6/Garrison Botlord-Skirmisher | -6/Factory Botlord-Skirmisher | -6/Garrison Botlord-Skirmisher | -5/Factory Botlord-Mutant | -5/Garrison Botlord-Mutant | -4/Factory Hauler-Mutant | -4/Garrison Resources | -11 -10 -10 -10 -9 -8 -8 -8 -8 -7 -7 -6 -6 -6 -6 -5 -5 -4 -4 ----------- Run | Yrd Mat Min Exi Min Mat Gar Mat Gar Fac Gar Fac Gar Fac Gar Fac Gar Fac Gar Matter Collected 4816 | 200 528 111 . 29 91 338 724 809 . 535 80 215 . 791 45 320 . . Remotely . | . . . . . . . . . . . . . . . . . . . Salvage Created 8535 | . 1094 357 . 137 219 762 1362 1026 . 952 331 408 . 1147 . 740 . . Parts 431 | . 61 23 . 5 12 30 64 64 . 39 13 24 . 67 . 29 . . Haulers Intercepted 4 | . 2 . . . . . 2 . . . . . . . . . . . Recyclers Shooed 2 | . . 1 . . . . 1 . . . . . . . . . . . Parts Field Recycled . | . . . . . . . . . . . . . . . . . . . Retrieved Matter . | . . . . . . . . . . . . . . . . . . . Parts Self-Destructed . | . . . . . . . . . . . . . . . . . . . Prevented . | . . . . . . . . . . . . . . . . . . . Kills | -11 -10 -10 -10 -9 -8 -8 -8 -8 -7 -7 -6 -6 -6 -6 -5 -5 -4 -4 ------- Run | Yrd Mat Min Exi Min Mat Gar Mat Gar Fac Gar Fac Gar Fac Gar Fac Gar Fac Gar Combat Hostiles Destroyed 169 | . 23 8 . 4 4 16 20 25 . 17 8 15 . 15 . 14 . . Guns 78 | . 9 3 . 1 3 4 19 19 . 9 2 2 . 6 . 1 . . Cannons 39 | . 8 5 . 3 1 6 1 . . . 5 4 . 5 . 1 . . AOE 47 | . 5 . . . . 5 . 6 . 7 . 9 . 4 . 11 . . Classes Destroyed 18 | . 7 2 . . 1 . 4 1 . . . 2 . 1 . . . . Worker 3 | . . . . . 1 . 2 . . . . . . . . . . . Builder 3 | . 1 2 . . . . . . . . . . . . . . . . Tunneler 1 | . . 1 . . . . . . . . . . . . . . . . Hauler 4 | . 2 . . . . . 2 . . . . . . . . . . . Recycler 4 | . 2 . . . . . 2 . . . . . . . . . . . Operator 2 | . 1 . . . . . 1 . . . . . . . . . . . Watcher 5 | . 3 . . . . . 1 . . . 1 . . . . . . . Swarmer 36 | . 6 2 . 1 . . . 4 . 1 4 7 . 4 . 7 . . Cutter 3 | . . . . . . . . . . . . 3 . . . . . . Grunt 83 | . 17 4 . 3 3 12 13 8 . 10 1 2 . 3 . 7 . . Brawler 5 | . . . . . . . 1 . . 2 . . . 1 . 1 . . Duelist 4 | . . . . . . . 1 . . . . 1 . 2 . . . . Sentry 20 | . . 2 . . 1 4 3 5 . 3 1 1 . . . . . . Specialist 1 | . . . . . . . . . . . . 1 . . . . . . Hunter 5 | . . . . . . . 1 2 . . . . . 2 . . . . Programmer 11 | . . . . . . . . 6 . 1 2 . . 2 . . . . Heavy 1 | . . . . . . . 1 . . . . . . . . . . . Behemoth 1 | . . . . . . . . . . . . . . 1 . . . . Butcher 1 | . . . . . . . . . . . . . . . . 1 . . Best Kill Streak 10 | . 5 3 . 3 4 6 4 4 . 10 3 5 . 4 . 6 . . Combat Bots Only 10 | . 5 2 . 3 3 6 4 4 . 10 3 5 . 4 . 6 . . Max Kills in Single Turn 4 | . 2 1 . 2 2 1 2 3 . 4 3 2 . 3 . 3 . . Gunslinging 1 | . . . . . . . 1 . . . . . . . . . . . Exploded 4 | . 2 . . . . 1 . 3 . 4 . 2 . 3 . 2 . . Melee . | . . . . . . . . . . . . . . . . . . . Uniques/NPCs Destroyed . | . . . . . . . . . . . . . . . . . . . Combat | -11 -10 -10 -10 -9 -8 -8 -8 -8 -7 -7 -6 -6 -6 -6 -5 -5 -4 -4 -------- Run | Yrd Mat Min Exi Min Mat Gar Mat Gar Fac Gar Fac Gar Fac Gar Fac Gar Fac Gar Hostile Shots Fired 938 | . 99 42 . 2 17 69 74 107 . 125 58 79 . 79 . 44 141 2 Missed 257 | . 29 8 . . 2 18 17 27 . 38 31 15 . 19 . 11 41 1 Hits 681 | . 70 34 . 2 15 51 57 80 . 87 27 64 . 60 . 33 100 1 Melee 8 | . . . . . . . . . . 7 . . . 1 . . . . Projectile 673 | . 70 34 . 2 15 51 57 80 . 80 27 64 . 59 . 33 100 1 AOE 3 | . . . . . . . . . . . . . . . . . 3 . Critical Strikes 32 | . 1 2 . . 2 3 3 8 . 5 1 2 . 1 . 1 3 . Part Disruptions 1 | . . . . . . . . 1 . . . . . . . . . . Damage Taken 10291 | . 825 463 . 18 220 822 973 1155 . 1094 318 898 . 1014 . 686 1786 19 Core 1254 | . 140 91 . 8 . 103 160 91 . 95 47 39 . 169 . 19 292 . Absorbed by Shields 6 | . . . . . . . . . . . . . . . . . 6 . Regen/Repaired (Parts) 345 | . 345 . . . . . . . . . . . . . . . . . Core Remaining (%) 65 | 100 . . . 4 . . . 35 . 86 . . . 70 . 98 . . Volleys Fired 619 | . 76 24 . 3 12 51 60 69 1 69 34 37 . 133 5 44 1 . Largest 3 | . 2 2 . 2 3 3 3 3 3 3 3 3 . 3 1 2 1 . Hottest 154 | . 112 79 . 79 102 154 120 117 117 139 140 140 . 120 120 120 120 . Shots Fired 1206 | . 135 47 . 6 36 114 168 173 3 130 88 62 . 184 5 54 1 . Gun 810 | . 83 24 . 3 24 67 159 169 3 118 25 7 . 102 . 26 . . Cannon 323 | . 48 23 . 3 12 40 9 . . 4 63 46 . 68 2 4 1 . Launcher 57 | . 4 . . . . 7 . 4 . 8 . 9 . 4 . 21 . . Special 16 | . . . . . . . . . . . . . . 10 3 3 . . Kinetic 653 | . 77 24 . 3 24 41 148 147 2 59 . . . 102 . 26 . . Thermal 340 | . 6 . . . . 26 17 22 1 52 88 53 . 68 2 4 1 . Explosive 25 | . 4 . . . . 7 . 4 . . . 5 . 2 . 3 . . Electromagnetic 172 | . 48 23 . 3 12 40 3 . . 19 . 4 . 2 . 18 . . Robot Hit Streak 32 | . 12 18 . 23 6 29 11 8 1 11 12 9 . 32 8 7 . . Robot Miss Streak 7 | . 4 3 . . 3 3 4 5 2 7 5 1 . 4 1 3 . . Penetration Max 1 | . . . . . . . 1 1 . 1 . . . 1 . . . . Secondary Targets 8 | . 1 . . . . . 4 1 . 2 . . . . . . . . Max Gunslinging Chain 1 | . 1 . . . . . 1 1 . 1 . . . . . . . . Shots Hit Robots 696 | . 87 34 4 5 22 75 95 92 1 63 36 35 . 117 2 22 6 . Core Hits 353 | . 33 14 . 4 10 29 45 41 1 37 15 36 . 57 . 31 . . Critical Kills 5 | . . . . . . . 4 . . . . . . 1 . . . . Critical Parts Destroyed 6 | . . . . . 1 . . 1 . 1 . . . 3 . . . . Critical Strikes 20 | . 3 . . . 1 1 4 2 . 4 1 . . 4 . . . . Burn 4 | . . . . . . . . . . 3 1 . . . . . . . Destroy 12 | . . . . . 1 . 4 2 . 1 . . . 4 . . . . Corrupt 4 | . 3 . . . . 1 . . . . . . . . . . . . Melee Attacks 37 | . 6 . 5 . . 4 1 8 . 2 . . . . . 5 6 . Impact . | . . . . . . . . . . . . . . . . . . . Slashing . | . . . . . . . . . . . . . . . . . . . Piercing . | . . . . . . . . . . . . . . . . . . . Sneak Attacks 21 | . 6 . 4 . . . . 7 . . . . . . . 1 3 . Combat Hostiles . | . . . . . . . . . . . . . . . . . . . Follow-up Attacks . | . . . . . . . . . . . . . . . . . . . Damage Inflicted 20296 | . 2115 764 . 116 398 1797 2250 2578 22 2218 1052 2031 . 3239 . 1716 . . Guns 9636 | . 661 247 . 43 244 746 2094 2145 22 1222 236 132 . 1685 . 159 . . Cannons 5149 | . 903 388 . 68 154 575 149 . . 145 774 642 . 1198 . 153 . . Explosions 5333 | . 514 42 . . . 476 . 433 . 851 . 1257 . 356 . 1404 . . Melee . | . . . . . . . . . . . . . . . . . . . Ramming 178 | . 37 87 . 5 . . 7 . . . 42 . . . . . . . Kinetic 8084 | . 603 247 . 43 244 369 1914 2005 22 793 . . . 1685 . 159 . . Thermal 5104 | . 193 42 . . . 496 285 140 . 610 1010 885 . 1198 . 245 . . Explosive 2819 | . 379 . . . . 357 . 433 . . . 881 . 290 . 479 . . Electromagnetic 4111 | . 903 388 . 68 154 575 44 . . 815 . 265 . 66 . 833 . . Impact . | . . . . . . . . . . . . . . . . . . . Slashing . | . . . . . . . . . . . . . . . . . . . Piercing . | . . . . . . . . . . . . . . . . . . . Highest Corruption 3 | . . . . . . . . 3 . 2 1 1 1 3 . . . . Average Corruption 2 | . . . . . . . . 2 . 1 1 1 1 2 . . . . Corruption Purged . | . . . . . . . . . . . . . . . . . . . Corruption Blocked . | . . . . . . . . . . . . . . . . . . . Effects 72 | . . . . . . . . 30 . 13 1 8 . 20 . . . . Message Errors 15 | . . . . . . . . 6 . 4 . 2 . 3 . . . . Matter Fused 18 | . . . . . . . . 7 . 2 . 3 . 6 . . . . Heat Flow Errors 4 | . . . . . . . . 1 . 1 . . . 2 . . . . Energy Discharges 9 | . . . . . . . . 4 . 1 . 1 . 3 . . . . Parts Rejected 2 | . . . . . . . . . . . 1 1 . . . . . . Parts Fused 1 | . . . . . . . . . . 1 . . . . . . . . Data Loss (minor) 11 | . . . . . . . . 6 . 2 . . . 3 . . . . Data Loss (major) 3 | . . . . . . . . 1 . 1 . 1 . . . . . . Misfires 1 | . . . . . . . . 1 . . . . . . . . . . Alerts 4 | . . . . . . . . 2 . 1 . . . 1 . . . . Weapon Failures 4 | . . . . . . . . 2 . . . . . 2 . . . . Overload Shots 8 | . . . . . . . . . . . 5 1 . 2 . . . . Effects 1 | . . . . . . . . . . . 1 . . . . . . . Energy Bleed 1 | . . . . . . . . . . . 1 . . . . . . . Overflow Damage 379 | . 78 . . . 20 25 . 9 . 11 29 148 . 44 . 15 . . Projectiles 184 | . 68 . . . 20 5 . . . . 29 18 . 44 . . . . Explosions 195 | . 10 . . . . 20 . 9 . 11 . 130 . . . 15 . . Melee . | . . . . . . . . . . . . . . . . . . . Knockbacks 3 | . . 2 . . . . . . . . 1 . . . . . . . Impact 3 | . . 2 . . . . . . . . 1 . . . . . . . Kinetic . | . . . . . . . . . . . . . . . . . . . Secondary . | . . . . . . . . . . . . . . . . . . . Self-Inflicted Damage 233 | . 43 . . . . 31 . . . 75 . 11 . 4 . 69 . . Shots 10 | . 3 . . . . 1 . . . 3 . 1 . 1 . 1 . . Rammed 24 | . 6 9 . 2 . . 1 . . . 6 . . . . . . . Targets Rammed 28 | . 7 12 . 2 . . 1 . . . 6 . . . . . . . Kicked . | . . . . . . . . . . . . . . . . . . . Crushed 4 | . 1 3 . . . . . . . . . . . . . . . . Highest Temperature 470 | . 243 297 . 66 113 139 423 256 . 470 . . . 298 58 167 52 . Average Temperature 88 | . 75 96 . 30 56 48 84 85 . 127 . . . 154 30 71 24 . Received Heat Transfer 2424 | . 267 177 . . 144 378 432 243 . 270 12 111 . 171 . 144 75 . Effects 10 | . 1 2 . . . . . 1 . 6 . . . . . . . . Shutdowns 2 | . . . . . . . . . . 2 . . . . . . . . Energy Bleed 2 | . . . . . . . . 1 . 1 . . . . . . . . Interference 3 | . 1 2 . . . . . . . . . . . . . . . . Matter Decay 1 | . . . . . . . . . . 1 . . . . . . . . Short Circuit 1 | . . . . . . . . . . 1 . . . . . . . . Damage (minor) 1 | . . . . . . . . . . 1 . . . . . . . . Siege Activations . | . . . . . . . . . . . . . . . . . . . Martial Activations . | . . . . . . . . . . . . . . . . . . . Shielding Activations . | . . . . . . . . . . . . . . . . . . . Robots Disrupted . | . . . . . . . . . . . . . . . . . . . Combat Hostiles . | . . . . . . . . . . . . . . . . . . . Robots Corrupted 3 | . 1 . . . . 1 . . . . . . . . . 1 . . Combat Hostiles 3 | . 1 . . . . 1 . . . . . . . . . 1 . . Parts Fried 11 | . 1 . . . . 2 . . . 4 . 3 . . . 1 . . Impact Corruptions . | . . . . . . . . . . . . . . . . . . . Robots Melted 2 | . . . . . . . . . . 1 1 . . . . . . . Combat Hostiles 2 | . . . . . . . . . . 1 1 . . . . . . . Parts Melted 17 | . . . . . . . 1 . . 3 8 2 . 3 . . . . Heat Transferred 8280 | . 348 50 . . . 766 573 259 . 1310 1493 1096 . 1965 . 420 . . Parts Sabotaged . | . . . . . . . . . . . . . . . . . . . Parts Stolen . | . . . . . . . . . . . . . . . . . . . Parts Stripped . | . . . . . . . . . . . . . . . . . . . Power Chain Reactions 14 | . 3 1 . . . 2 . . . 3 . 1 . . . 4 . . Alert | -11 -10 -10 -10 -9 -8 -8 -8 -8 -7 -7 -6 -6 -6 -6 -5 -5 -4 -4 ------- Run | Yrd Mat Min Exi Min Mat Gar Mat Gar Fac Gar Fac Gar Fac Gar Fac Gar Fac Gar Maximum Alert Level 4 | . 1 . . . . 2 2 3 2 4 2 3 2 4 2 4 2 1 Low Security (%) 30 | . 71 100 . 100 100 31 8 . . . 51 5 . . . . . . Level 1 18 | . 28 . . . . 25 80 12 . 8 20 42 14 9 . 19 . 100 Level 2 22 | . . . . . . 42 10 25 100 10 28 14 85 34 100 13 100 . Level 3 19 | . . . . . . . . 61 . 22 . 38 . 37 . 53 . . Level 4 8 | . . . . . . . . . . 58 . . . 18 . 13 . . Level 5 . | . . . . . . . . . . . . . . . . . . . High Security . | . . . . . . . . . . . . . . . . . . . Max Security . | . . . . . . . . . . . . . . . . . . . Peak Influence 1307 | . 317 130 . 84 61 510 438 1075 564 1307 679 801 420 1141 598 1242 651 306 Initial 679 | . . 115 . . 9 32 248 269 564 333 679 117 420 273 598 308 651 306 Average 467 | . 132 30 . 19 33 282 269 746 524 1020 299 529 406 738 499 761 561 305 Influence Increases 8167 | . 835 263 . 156 130 628 596 906 2 1131 389 764 . 968 96 1144 159 . Destroy 0b10 Robot/C 4100 | . 460 160 . 120 80 400 400 540 . 400 240 440 . 360 20 480 . . Destroy 0b10 Robot/NC 140 | . 45 15 . . 5 . 40 5 . . 10 . . 20 . . . . Destroy Leader 510 | . 100 30 . 20 20 . 106 30 . 30 54 40 . 50 10 20 . . Allied During Kill 358 | . . . . 16 6 28 . 29 . 23 16 71 . 44 20 105 . . Trap Triggered on 0b10 10 | . 10 . . . . . . . . . . . . . . . . . Successful Hack 216 | . 27 . . . 4 14 . 35 . 21 33 14 . 21 42 . 5 . Select Force Hacks 60 | . 60 . . . . . . . . . . . . . . . . . Disable Machine 330 | . 45 30 . . . . 45 . . 15 15 45 . 30 . 15 90 . Anti-Garrison Action 1200 | . . . . . . 100 . 200 . 200 . 50 . 300 . 350 . . Destroy Structure 433 | . 28 13 . . . 41 5 52 2 22 21 89 . 38 4 54 64 . Partial Spotted 30 | . . . . . . . . 15 . . . . . 15 . . . . Lose Combat Pursuer 780 | . 60 15 . . 15 45 . . . 420 . 15 . 90 . 120 . . Influence Decreases 7871 | . 539 447 112 132 104 168 692 245 601 313 1515 131 411 217 797 342 963 142 Entered New Map 3949 | . . 181 112 . 15 18 262 145 511 143 615 51 381 117 543 132 591 132 Time Decay 2492 | . 509 246 . 132 49 . 410 . 90 . 550 . 30 . 254 . 222 . Lost Part 490 | . 30 20 . . . 90 . 60 . 50 10 60 . 60 . 50 50 10 Lost Ally 640 | . . . . . 40 60 20 40 . 120 40 20 . 40 . 160 100 . Purge Threat 300 | . . . . . . . . . . . 300 . . . . . . . Squads Dispatched 17 | . 5 . . . 2 . 3 . 1 . 5 . . . . . 1 . Investigation 6 | . 3 . . . . . 2 . . . 1 . . . . . . . Extermination 3 | . . . . . . . . . . . 2 . . . . . 1 . Reinforcement 7 | . 2 . . . 1 . 1 . 1 . 2 . . . . . . . Assault . | . . . . . . . . . . . . . . . . . . . Garrison 1 | . . . . . 1 . . . . . . . . . . . . . Intercept . | . . . . . . . . . . . . . . . . . . . Searches Triggered . | . . . . . . . . . . . . . . . . . . . Construction Impeded . | . . . . . . . . . . . . . . . . . . . Haulers Reinforced . | . . . . . . . . . . . . . . . . . . . Active Scanning Responses . | . . . . . . . . . . . . . . . . . . . Cargo Convoy Interrupts . | . . . . . . . . . . . . . . . . . . . Stealth | -11 -10 -10 -10 -9 -8 -8 -8 -8 -7 -7 -6 -6 -6 -6 -5 -5 -4 -4 --------- Run | Yrd Mat Min Exi Min Mat Gar Mat Gar Fac Gar Fac Gar Fac Gar Fac Gar Fac Gar Distress Signals 4 | . 1 . . . . . 3 . . . . . . . . . . . Communications Jammed 40 | . . . . . . . . . . . . . . . 2 . 38 . Distress Signals 38 | . . . . . . . . . . . . . . . . . 38 . Times Spotted 272 | . 39 9 . 6 6 22 26 26 1 38 16 21 . 24 1 26 10 1 Peak Tracking Total 9 | . 5 3 . 3 2 6 4 5 1 9 3 5 . 5 1 7 4 1 Tactical Retreats 30 | . 2 1 . . 1 2 . . . 15 . 1 . 4 . 4 . . Traps | -11 -10 -10 -10 -9 -8 -8 -8 -8 -7 -7 -6 -6 -6 -6 -5 -5 -4 -4 ------- Run | Yrd Mat Min Exi Min Mat Gar Mat Gar Fac Gar Fac Gar Fac Gar Fac Gar Fac Gar Traps Triggered 19 | . 1 . . . . . 2 2 . 1 . 1 . 2 . 9 1 . Indirectly 3 | . . . . . . . . . . . . . . . . 3 . . Trap Hack Attempts 84 | . 36 . . . . 17 . . . . . . . . . . 31 . Triggered 1 | . . . . . . 1 . . . . . . . . . . . . Disarmed 2 | . 2 . . . . . . . . . . . . . . . . . Reprogrammed 4 | . 2 . . . . . . . . . . . . . . . 2 . Reused 1 | . 1 . . . . . . . . . . . . . . . . . Traps Extracted . | . . . . . . . . . . . . . . . . . . . Installed . | . . . . . . . . . . . . . . . . . . . Triggered 1 | . 1 . . . . . . . . . . . . . . . . . Machines | -11 -10 -10 -10 -9 -8 -8 -8 -8 -7 -7 -6 -6 -6 -6 -5 -5 -4 -4 ---------- Run | Yrd Mat Min Exi Min Mat Gar Mat Gar Fac Gar Fac Gar Fac Gar Fac Gar Fac Gar Machines Disabled 33 | . 3 2 . . . 2 3 1 . 2 1 3 . 6 . 4 6 . Max in Single Turn 1 | . 1 1 . . . 1 1 1 . 1 1 1 . 1 . 1 . . Garrison Relay 9 | . . . . . . 1 . . . 1 . . . 4 . 3 . . Machines Repaired . | . . . . . . . . . . . . . . . . . . . Machines Dismantled . | . . . . . . . . . . . . . . . . . . . Machines Sabotaged . | . . . . . . . . . . . . . . . . . . . Overloaded Fab Kills . | . . . . . . . . . . . . . . . . . . . Hacking | -11 -10 -10 -10 -9 -8 -8 -8 -8 -7 -7 -6 -6 -6 -6 -5 -5 -4 -4 --------- Run | Yrd Mat Min Exi Min Mat Gar Mat Gar Fac Gar Fac Gar Fac Gar Fac Gar Fac Gar Machines Accessed 45 | . 8 . 2 . 1 2 2 4 1 3 10 1 1 3 3 2 2 . Terminals 32 | . 5 . . . . 2 1 4 . 3 8 1 . 3 2 2 1 . Fabricators 1 | . . . . . . . . . . . 1 . . . . . . . Repair Stations 1 | . 1 . . . . . . . . . . . . . . . . . Recycling Units 2 | . 2 . . . . . . . . . . . . . . . . . Scanalyzers . | . . . . . . . . . . . . . . . . . . . Garrison Access 7 | . . . . . 1 . 1 . 1 . 1 . 1 . 1 . 1 . Total Hacks 100 | . 26 . 2 . 2 4 3 8 1 7 22 3 1 5 8 5 3 . Successful 48 | . 17 . 2 . 1 1 2 3 1 2 9 1 1 2 4 . 2 . Failed 52 | . 9 . . . 1 3 1 5 . 5 13 2 . 3 4 5 1 . Catastrophic 10 | . . . . . . 1 1 1 . . 4 . . 2 . 1 . . Database Lockouts . | . . . . . . . . . . . . . . . . . . . Manual 32 | . 13 . 1 . . . 2 . . . 10 . . . 4 . 2 . Terminals 78 | . 17 . . . . 4 2 8 . 7 18 3 . 5 7 5 2 . Fabricators 3 | . . . . . . . . . . . 3 . . . . . . . Repair Stations 7 | . 7 . . . . . . . . . . . . . . . . . Recycling Units 2 | . 2 . . . . . . . . . . . . . . . . . Scanalyzers . | . . . . . . . . . . . . . . . . . . . Garrison Access 8 | . . . . . 2 . 1 . 1 . 1 . 1 . 1 . 1 . Terminal Hacks 22 | . 5 . 2 . . 1 . 3 . 2 5 1 . 2 1 . . . Record 1 | . . . 1 . . . . . . . . . . . . . . . Part Schematic 1 | . . . . . . . . . . . 1 . . . . . . . Robot Analysis 2 | . 2 . . . . . . . . . . . . . . . . . Prototype ID Bank 2 | . 2 . . . . . . . . . . . . . . . . . Open Door 3 | . . . . . . . . 1 . 1 . . . 1 . . . . Level Access Points 1 | . . . . . . . . . . . . . . . 1 . . . Branch Access Points 1 | . . . . . . . . . . . 1 . . . . . . . Emergency Access Points 3 | . . . . . . . . 1 . . . 1 . 1 . . . . Unreport Threat 2 | . . . . . . . . . . . 2 . . . . . . . Locate Traps 2 | . 1 . . . . . . . . . 1 . . . . . . . Garrison Registry 1 | . . . . . . 1 . . . . . . . . . . . . Patrol Navigation 2 | . . . . . . . . 1 . 1 . . . . . . . . Proto ID Catalog 1 | . . . 1 . . . . . . . . . . . . . . . Fabricator Hacks 1 | . . . . . . . . . . . 1 . . . . . . . Load Schematic 1 | . . . . . . . . . . . 1 . . . . . . . Repair Station Hacks 6 | . 6 . . . . . . . . . . . . . . . . . Scan Component 3 | . 3 . . . . . . . . . . . . . . . . . Repair 3 | . 3 . . . . . . . . . . . . . . . . . Recycling Unit Hacks . | . . . . . . . . . . . . . . . . . . . Scanalyzer . | . . . . . . . . . . . . . . . . . . . Garrison Access Hacks 7 | . . . . . 1 . 1 . 1 . 1 . 1 . 1 . 1 . Unlock Access 7 | . . . . . 1 . 1 . 1 . 1 . 1 . 1 . 1 . Unauthorized Hacks 12 | . 6 . . . . . 1 . . . 2 . . . 2 . 1 . Terminals 10 | . 4 . . . . . 1 . . . 2 . . . 2 . 1 . Botnet 10 | . 4 . . . . . 1 . . . 2 . . . 2 . 1 . Fabricators . | . . . . . . . . . . . . . . . . . . . Repair Stations . | . . . . . . . . . . . . . . . . . . . Recycling Units 2 | . 2 . . . . . . . . . . . . . . . . . Tunnel 2 | . 2 . . . . . . . . . . . . . . . . . Scanalyzers . | . . . . . . . . . . . . . . . . . . . Garrison Access . | . . . . . . . . . . . . . . . . . . . Data Cores Recovered 2 | . 1 . . . . . 1 . . . . . . . . . . . Used 1 | . 1 . . . . . . . . . . . . . . . . . Hacking Detections 38 | . 6 . . . 1 2 2 3 . 3 10 1 1 2 3 2 2 . Full Trace Events 8 | . . . . . . 1 . 2 . 1 1 1 . . . 2 . . Feedback Events . | . . . . . . . . . . . . . . . . . . . Feedback Blocked . | . . . . . . . . . . . . . . . . . . . Robot Schematics Acquired . | . . . . . . . . . . . . . . . . . . . Robots Built . | . . . . . . . . . . . . . . . . . . . Authchips . | . . . . . . . . . . . . . . . . . . . Time . | . . . . . . . . . . . . . . . . . . . Total Robot Build Rating . | . . . . . . . . . . . . . . . . . . . Part Schematics Acquired 1 | . . . . . . . . . . . 1 . . . . . . . Parts Built . | . . . . . . . . . . . . . . . . . . . Authchips . | . . . . . . . . . . . . . . . . . . . Time . | . . . . . . . . . . . . . . . . . . . Total Part Build Rating . | . . . . . . . . . . . . . . . . . . . Parts Repaired 3 | . 3 . . . . . . . . . . . . . . . . . Time 84 | . 84 . . . . . . . . . . . . . . . . . Parts Recycled . | . . . . . . . . . . . . . . . . . . . Recycled Matter . | . . . . . . . . . . . . . . . . . . . Retrieved Matter . | . . . . . . . . . . . . . . . . . . . Retrieved Components . | . . . . . . . . . . . . . . . . . . . Parts Scanalyzed . | . . . . . . . . . . . . . . . . . . . Part Schematics Acquired . | . . . . . . . . . . . . . . . . . . . Parts Damaged . | . . . . . . . . . . . . . . . . . . . Bothacking | -11 -10 -10 -10 -9 -8 -8 -8 -8 -7 -7 -6 -6 -6 -6 -5 -5 -4 -4 ------------ Run | Yrd Mat Min Exi Min Mat Gar Mat Gar Fac Gar Fac Gar Fac Gar Fac Gar Fac Gar Used RIF Installer 9 | . . . . . . 2 . 2 . 2 . 1 . 1 . 1 . . Coupler Efficiency 1 | . . . . . . . . . . 1 . . . . . . . . Hotswap 1 | . . . . . . . . . . 1 . . . . . . . . Signal Jammer 1 | . . . . . . . . 1 . . . . . . . . . . Zone Cloak 2 | . . . . . . . . 1 . . . 1 . . . . . . Robot Detection 1 | . . . . . . 1 . . . . . . . . . . . . Autoassimilate 2 | . . . . . . . . . . . . . . 1 . 1 . . Robots Hacked 33 | . 4 . 4 . . 2 1 1 . 2 . . . 6 1 8 4 . Non-combat 9 | . 4 . 3 . . . . . . . . . . . . . 2 . Combat 24 | . . . 1 . . 2 1 1 . 2 . . . 6 1 8 2 . Autoassimilated 6 | . . . . . . . . . . . . . . . . 4 2 . Robot Hacks Applied 30 | . 5 . 4 . . 2 1 1 . 2 . . . 7 2 4 2 . parse_system 7 | . 3 . 4 . . . . . . . . . . . . . . . no_distress 2 | . 2 . . . . . . . . . . . . . . . . . map_route 2 | . . . . . . . . . . . . . . . . . 2 . find_garrison 2 | . . . . . . . 1 . . . . . . . 1 . . . disable_weapons 4 | . . . . . . 1 . . . 1 . . . . 1 1 . . overwrite_iff 4 | . . . . . . . . . . 1 . . . 2 . 1 . . formatsys_high 9 | . . . . . . 1 . 1 . . . . . 5 . 2 . . Relay Couplers Released 41 | . . . . . . 5 . . . 3 . . . 19 . 14 . . Machine Destruction 38 | . . . . . . 5 . . . 3 . . . 19 . 11 . . Programmers 3 | . . . . . . . . . . . . . . . . 3 . . Attached 11 | . . . . . . 1 . 1 . 1 1 . . 3 1 2 1 . Fabnet Peak Effective % . | . . . . . . . . . . . . . . . . . . . Robots Rewired 11 | . . . . . . 3 . 6 . . . . . 2 . . . . Allies Hacked . | . . . . . . . . . . . . . . . . . . . Hacks Repelled . | . . . . . . . . . . . . . . . . . . . Allies | -11 -10 -10 -10 -9 -8 -8 -8 -8 -7 -7 -6 -6 -6 -6 -5 -5 -4 -4 -------- Run | Yrd Mat Min Exi Min Mat Gar Mat Gar Fac Gar Fac Gar Fac Gar Fac Gar Fac Gar Total Allies 37 | . . . . 2 . 4 . 7 . 3 . 2 . 8 . 9 2 . Largest Group 7 | . . . . 2 2 3 1 5 5 5 2 2 1 7 7 7 5 . Highest-Rated Group 218 | . . . . 45 45 109 15 118 118 118 70 76 38 218 218 218 204 . Highest-Rated Ally 51 | . . . . 31 31 39 15 39 39 39 39 38 38 38 38 51 51 . Total Orders 5 | . . . . . . . . . . . . . . . . 3 2 . STAY 3 | . . . . . . . . . . . . . . . . 2 1 . FOLLOW 2 | . . . . . . . . . . . . . . . . 1 1 . Ally Attacks 320 | . . . . 9 6 32 6 32 7 24 33 33 . 43 4 64 27 . Total Damage 5742 | . . . . 108 42 486 132 292 38 369 395 960 . 567 131 1540 682 . Kills 38 | . . . . 2 . 4 . 3 . 3 5 7 . 3 1 10 . . Allies Corrupted . | . . . . . . . . . . . . . . . . . . . Allies Melted 3 | . . . . . . 1 . . . . 1 . . . . 1 . . Intel | -11 -10 -10 -10 -9 -8 -8 -8 -8 -7 -7 -6 -6 -6 -6 -5 -5 -4 -4 ------- Run | Yrd Mat Min Exi Min Mat Gar Mat Gar Fac Gar Fac Gar Fac Gar Fac Gar Fac Gar Active Infowar (turns) 6743 | . . . . . . . . . . . 1509 1051 70 1565 550 1510 467 21 Optics 6743 | . . . . . . . . . . . 1509 1051 70 1565 550 1510 467 21 Robot Analysis Total 2 | . 2 . . . . . . . . . . . . . . . . . Derelict Logs Recovered 4 | . . 3 . 1 . . . . . . . . . . . . . . Drone Launches . | . . . . . . . . . . . . . . . . . . . Drone Recoveries . | . . . . . . . . . . . . . . . . . . . Exploration | -11 -10 -10 -10 -9 -8 -8 -8 -8 -7 -7 -6 -6 -6 -6 -5 -5 -4 -4 ------------- Run | Yrd Mat Min Exi Min Mat Gar Mat Gar Fac Gar Fac Gar Fac Gar Fac Gar Fac Gar Turns Passed 17239 | . 1804 1705 578 828 112 834 985 1738 184 1638 1599 1051 70 1565 550 1510 467 21 Spaces Moved 8040 | 1 671 654 353 494 38 369 443 873 106 845 828 558 37 819 216 551 176 8 Core . | . . . . . . . . . . . . . . . . . . . Treads 7271 | . 578 654 353 494 38 369 443 873 106 845 828 558 37 144 216 551 176 8 Legs 769 | 1 93 . . . . . . . . . . . . 675 . . . . Wheels . | . . . . . . . . . . . . . . . . . . . Hover . | . . . . . . . . . . . . . . . . . . . Flight . | . . . . . . . . . . . . . . . . . . . Fastest Speed 110 | 120 120 160 160 160 160 160 160 166 166 160 160 160 160 110 240 240 240 240 Average Speed 172 | 120 203 160 160 160 160 160 166 168 166 166 160 160 175 138 240 240 240 240 Slowest Speed 320 | 120 240 160 160 160 160 160 170 170 166 320 160 240 240 320 240 240 240 240 Overloaded Moves . | . . . . . . . . . . . . . . . . . . . Propulsion Burnouts . | . . . . . . . . . . . . . . . . . . . Robots Hopped . | . . . . . . . . . . . . . . . . . . . Potential Cave-ins 2 | . . . . . . . . . . . 2 . . . . . . . Cave-ins Triggered . | . . . . . . . . . . . . . . . . . . . Exploration Rate (%) 46 | 2 98 99 66 98 6 47 44 91 3 64 23 82 2 79 6 64 8 3 Regions Visited 18 Branch Regions 3 Pre-discovered Areas 7 | . 2 3 1 1 . . . . . . . . . . . . . . Known Exits Taken 7 | . . . . . 1 . 1 . 1 . 1 . 1 . 1 . 1 . Unknown Exits Taken 5 | 1 1 1 1 1 . . . . . . . . . . . . . . Scrap Searched 3 | . . 1 . 2 . . . . . . . . . . . . . . Spaces Dug 30 | . 7 . . . . . 1 . . . 5 12 . 1 2 1 1 . Terrain Destroyed 198 | . 24 15 . . . 10 9 16 . 13 16 56 . 28 2 8 1 . Melee . | . . . . . . . . . . . . . . . . . . . Projectile 45 | . . . . . . . 9 9 . 4 16 . . 3 2 1 1 . AOE 151 | . 24 15 . . . 10 . 5 . 9 . 56 . 25 . 7 . . Terrain Rammed . | . . . . . . . . . . . . . . . . . . . Walls Destroyed . | . . . . . . . . . . . . . . . . . . . Machines Disabled . | . . . . . . . . . . . . . . . . . . . Actions | -11 -10 -10 -10 -9 -8 -8 -8 -8 -7 -7 -6 -6 -6 -6 -5 -5 -4 -4 --------- Run | Yrd Mat Min Exi Min Mat Gar Mat Gar Fac Gar Fac Gar Fac Gar Fac Gar Fac Gar Total 10298 | . 956 1260 365 527 60 514 573 1003 111 963 1029 651 43 1089 244 680 221 9 Wait 1075 | . 106 560 . 25 3 31 19 3 . 20 141 41 . 55 20 51 . . Move 8028 | . 670 653 352 493 38 368 443 872 106 844 828 557 37 818 216 550 175 8 Hop . | . . . . . . . . . . . . . . . . . . . Pick Up 94 | . 17 4 3 2 1 7 13 6 . 6 2 4 . 21 . 8 . . Fast Attach 51 | . 7 . . . 1 2 7 3 2 5 7 1 1 13 . 1 1 . Attach 53 | . 4 2 1 . 3 8 . 5 . 5 2 5 2 4 3 5 3 1 Detach 22 | . 2 . . . . 1 1 2 1 3 1 . 2 8 . . 1 . Swap 70 | . 17 3 1 . 2 5 8 9 . 5 2 6 . 8 . 4 . . Drop 66 | . 8 2 3 2 . . 20 2 1 4 6 . 1 16 . . 1 . Fire 619 | . 76 24 . 3 12 51 60 69 1 69 34 37 . 133 5 44 1 . Melee 37 | . 6 . 5 . . 4 1 8 . 2 . . . . . 5 6 . Ram . | . . . . . . . . . . . . . . . . . . . Kick . | . . . . . . . . . . . . . . . . . . . Crush 28 | . 7 12 . 2 . . 1 . . . 6 . . . . . . . Escape Stasis 21 | . . . . . . . . . . . . . . 7 . 12 2 . Rewire 50 | . . . . . . 20 . 24 . . . . . 6 . . . . Trap 84 | . 36 . . . . 17 . . . . . . . . . . 31 . Miscellaneous . | . . . . . . . . . . . . . . . . . . . Route ------- -11/Scrapyard -10/Materials (discovered 6 exits: [*Mat x3] / [*Min x2] / [*Sub]) -10/Mines (discovered 4 exits: [*Mat x2] / *Exi / [*Sub]) -10/Exiles (discovered 2 exits: [*Min x2]) -9/Mines (discovered 2 exits: *Mat x2) -8/Materials -8/Garrison (discovered 3 exits: *Mat x3) -8/Materials (discovered 2 exits: *Fac / Gar) -8/Garrison (discovered 4 exits: *Fac x3 / [*Mat]) -7/Factory -7/Garrison (discovered 3 exits: *Fac x3) -6/Factory (discovered 3 exits: Low x2 / Gar) -6/Garrison (discovered 3 exits: *Fac x3) -6/Factory -6/Garrison (discovered 3 exits: *Fac x3) -5/Factory (discovered 5 exits: *Fac x4 / Gar) -5/Garrison (discovered 3 exits: *Fac x3) -4/Factory -4/Garrison History --------- Turn | Location | Event 1 | -11/Scrapyard | Discovered new exit (range 0) 1 | -11/Scrapyard | Entered Materials 316 | -10/Materials | Build established: Mutant 441 | -10/Materials | Discovered new exit (range 10) 637 | -10/Materials | Discovered new exit (range 15) 851 | -10/Materials | Discovered new exit (range 15) 1344 | -10/Materials | Core integrity fell below 50% 1378 | -10/Materials | Discovered new exit (range 14) 1512 | -10/Materials | Repaired Lgt. Treads 1545 | -10/Materials | Repaired Hrd. Light Armor Plating 1576 | -10/Materials | Repaired Lgt. Treads 1582 | -10/Materials | Discovered new exit (range 16) 1611 | -10/Materials | Discovered new exit (range 8) 1805 | -10/Materials | Entered Mines 1869 | -10/Mines | Assembled infested the area 2531 | -10/Mines | Learned location of Storage (-7) 2573 | -10/Mines | Discovered new exit (range 5) 2751 | -10/Mines | A weapon hastily lodged in a ceiling crevice suddenly fell to the ground 2847 | -10/Mines | Discovered new exit (range 10) 2864 | -10/Mines | Discovered new exit (range 3) 2908 | -10/Mines | Discovered new exit (range 8) 3112 | -10/Mines | Received a Rocket Launcher from a helpful Derelict 3373 | -10/Mines | Core integrity fell below 20% 3510 | -10/Mines | Entered Exiles 3536 | -10/Exiles | Discovered new exit (range 15) 3549 | -10/Exiles | Met 8R-AWN 3582 | -10/Exiles | Met EX-HEX 3624 | -10/Exiles | Met EX-BIN 3715 | -10/Exiles | Aligned with FarCom system 3717 | -10/Exiles | Given EX-Vault access code 3754 | -10/Exiles | Opened EX-Vault 3765 | -10/Exiles | Found Gui. Plasma Cannon 3805 | -10/Exiles | Warned to stay clear of 0b10 Research branches 3974 | -10/Exiles | Met EX-DEC 4020 | -10/Exiles | Learned location of Zion (-7) 4075 | -10/Exiles | Discovered new exit (range 10) 4088 | -10/Exiles | Left Exiles lab with Gui. Plasma Cannon 4088 | -10/Exiles | Entered Mines 4098 | -9/Mines | Met a Derelict bent on vengeance 4101 | -9/Mines | Learned Materials emergency access door positions 4444 | -9/Mines | Discovered new exit (range 13) 4768 | -9/Mines | Discovered new exit (range 7) 4916 | -9/Mines | Entered Materials 4916 | -8/Materials | Accompanied by 2 allies 4916 | -8/Materials | Evolved 4 slots: Propulsion x1, Utility x2, Weapon x1 4921 | -8/Materials | Led the pair of lost Derelicts to an unsafe place 4961 | -8/Materials | Garrison activated, responded to threat 5028 | -8/Materials | Identified exit to Garrison 5028 | -8/Materials | Entered Garrison 5166 | -8/Garrison | Triggered checkpoint 5211 | -8/Garrison | Discovered new exit (range 63) 5211 | -8/Garrison | Discovered new exit (range 83) 5211 | -8/Garrison | Discovered new exit (range 43) 5297 | -8/Garrison | Build established: Scavenger-Skirmisher 5378 | -8/Garrison | Triggered checkpoint 5432 | -8/Garrison | Triggered checkpoint 5498 | -8/Garrison | Lost 3 allies 5506 | -8/Garrison | Lost 4 parts (1p2n1w) 5564 | -8/Garrison | Installed Relay Interface Framework 5608 | -8/Garrison | Triggered checkpoint 5719 | -8/Garrison | Garrison Relay disabled 5763 | -8/Garrison | Expanded RIF knowledge: Robot Detection 5862 | -8/Garrison | Entered Materials 5862 | -8/Materials | Accompanied by 1 ally 6240 | -8/Materials | Build established: Bothacker-Skirmisher 6371 | -8/Materials | Discovered new exit (range 15) 6847 | -8/Materials | Identified exit to Garrison 6847 | -8/Materials | Entered Garrison 6891 | -8/Garrison | Triggered checkpoint 6946 | -8/Garrison | Core integrity fell below 50% 7083 | -8/Garrison | Triggered checkpoint 7201 | -8/Garrison | Lost 3 parts (1u2w) 7268 | -8/Garrison | Triggered checkpoint 7314 | -8/Garrison | Triggered checkpoint 7321 | -8/Garrison | Triggered checkpoint 7453 | -8/Garrison | Triggered checkpoint 7457 | -8/Garrison | Build established: Scavenger-Gunner 7465 | -8/Garrison | Discovered new exit (range 5) 7553 | -8/Garrison | Discovered new exit (range 10) 7593 | -8/Garrison | Triggered checkpoint 7772 | -8/Garrison | Expanded RIF knowledge: Signal Jamming 7855 | -8/Garrison | Triggered checkpoint 8019 | -8/Garrison | Discovered new exit (range 14) 8214 | -8/Garrison | Expanded RIF knowledge: Zone Cloak 8227 | -8/Garrison | Build established: Commander-Skirmisher 8255 | -8/Garrison | Discovered new exit (range 13) 8585 | -8/Garrison | Entered Factory 8585 | -7/Factory | Accompanied by 5 allies 8585 | -7/Factory | Evolved 2 slots: Utility x2 8769 | -7/Factory | Identified exit to Garrison 8769 | -7/Factory | Entered Garrison 8769 | -7/Garrison | Accompanied by 5 allies 8849 | -7/Garrison | Expanded RIF knowledge: Coupler Efficiency 8911 | -7/Garrison | Garrison Relay disabled 9063 | -7/Garrison | Triggered checkpoint 9074 | -7/Garrison | Triggered checkpoint 9096 | -7/Garrison | Lost 5 allies 9130 | -7/Garrison | Destroyed 10 combat bots 9325 | -7/Garrison | Discovered new exit (range 10) 9524 | -7/Garrison | Build established: Bothacker-Skirmisher 9638 | -7/Garrison | Expanded RIF knowledge: Hotswap 9991 | -7/Garrison | Discovered new exit (range 8) 10160 | -7/Garrison | Rescued a captive Derelict 10161 | -7/Garrison | Rescued a captive Derelict 10221 | -7/Garrison | Discovered new exit (range 8) 10407 | -7/Garrison | Entered Factory 10407 | -6/Factory | Accompanied by 2 allies 10407 | -6/Factory | Evolved 2 slots: Utility x2 10409 | -6/Factory | Build established: Bothacker-Mutant 10478 | -6/Factory | Identified exit to Lower Caves 10776 | -6/Factory | Build established: Bothacker-Skirmisher 12006 | -6/Factory | Identified exit to Garrison 12006 | -6/Factory | Entered Garrison 12054 | -6/Garrison | Spotted Striker 12106 | -6/Garrison | Spotted Executioner 12196 | -6/Garrison | Triggered checkpoint 12314 | -6/Garrison | Triggered checkpoint 12351 | -6/Garrison | Discovered new exit (range 8) 12363 | -6/Garrison | Rescued a captive Derelict 12365 | -6/Garrison | Rescued a captive Derelict 12464 | -6/Garrison | Triggered checkpoint 12539 | -6/Garrison | Lost 4 parts (3n1u) 12592 | -6/Garrison | Found Relay Coupler [Proto] 12595 | -6/Garrison | Found Relay Coupler [Proto] 12612 | -6/Garrison | Found Relay Coupler [Proto] 12668 | -6/Garrison | Triggered checkpoint 12719 | -6/Garrison | Discovered new exit (range 11) 12733 | -6/Garrison | Expanded RIF knowledge: Zone Cloak 12832 | -6/Garrison | Triggered checkpoint 12863 | -6/Garrison | Discovered new exit (range 8) 12903 | -6/Garrison | Build established: Botlord-Skirmisher 13057 | -6/Garrison | Entered Factory 13057 | -6/Factory | Accompanied by 1 ally 13127 | -6/Factory | Identified exit to Garrison 13127 | -6/Factory | Entered Garrison 13127 | -6/Garrison | Accompanied by 1 ally 13261 | -6/Garrison | Triggered checkpoint 13554 | -6/Garrison | Spotted B-75 Beast 13602 | -6/Garrison | Destroyed B-75 Beast 13669 | -6/Garrison | Triggered checkpoint 13813 | -6/Garrison | Garrison Relay disabled 13919 | -6/Garrison | Discovered new exit (range 8) 13927 | -6/Garrison | Triggered checkpoint 13984 | -6/Garrison | Garrison Relay disabled 14008 | -6/Garrison | Garrison Relay disabled 14091 | -6/Garrison | Expanded RIF knowledge: Autoassimilate 14135 | -6/Garrison | Triggered checkpoint 14187 | -6/Garrison | Discovered new exit (range 10) 14259 | -6/Garrison | Triggered checkpoint 14345 | -6/Garrison | Triggered checkpoint 14396 | -6/Garrison | Garrison Relay disabled 14651 | -6/Garrison | Build established: Botlord-Mutant 14654 | -6/Garrison | Discovered new exit (range 12) 14692 | -6/Garrison | Entered Factory 14692 | -5/Factory | Accompanied by 7 allies 14692 | -5/Factory | Evolved 2 slots: Propulsion x1, Utility x1 14922 | -5/Factory | Discovered new exit (range 3) 14997 | -5/Factory | Build established: Botlord-Skirmisher 15011 | -5/Factory | Identified exit to Factory 15242 | -5/Factory | Identified exit to Garrison 15242 | -5/Factory | Entered Garrison 15242 | -5/Garrison | Accompanied by 7 allies 15248 | -5/Garrison | Triggered checkpoint 15310 | -5/Garrison | Expanded RIF knowledge: Autoassimilate 15368 | -5/Garrison | Triggered checkpoint 15398 | -5/Garrison | Garrison Relay disabled 15527 | -5/Garrison | Triggered checkpoint 15550 | -5/Garrison | Triggered checkpoint 15635 | -5/Garrison | Triggered checkpoint 15690 | -5/Garrison | Lost 3 allies 15848 | -5/Garrison | Discovered exit to Factory (range 11) 16071 | -5/Garrison | Build established: Botlord-Tank 16292 | -5/Garrison | Rescued a captive Derelict 16293 | -5/Garrison | Rescued a captive Derelict 16346 | -5/Garrison | Garrison Relay disabled 16424 | -5/Garrison | Discovered exit to Factory (range 12) 16506 | -5/Garrison | Triggered checkpoint 16588 | -5/Garrison | Build established: Botlord-Mutant 16636 | -5/Garrison | Triggered checkpoint 16664 | -5/Garrison | Garrison Relay disabled 16706 | -5/Garrison | Discovered exit to Factory (range 19) 16752 | -5/Garrison | Entered Factory 16752 | -4/Factory | Accompanied by 5 allies 16752 | -4/Factory | Evolved 2 slots: Utility x2 17156 | -4/Factory | Lost 3 allies 17165 | -4/Factory | Lost 4 parts (1n1u2w) 17202 | -4/Factory | Identified exit to Garrison 17219 | -4/Factory | Entered Garrison 17240 | -4/Garrison | Self-destructed Last Messages --------------- 17203_ Penetrated by Slug. 17203_ Slug penetrates Garrison Access. 17204_ W-44 Eye distress signal jammed. 17207_ Slug penetrates Wall. 17207_ KE Penetrator destroyed. 17207_ W-44 Eye distress signal jammed. 17210_ RIF automatically installing new Veteran 7b system data, ETC: 6. 17210_ Slug penetrates Wall. 17210_ Slug penetrates Garrison Access. 17210_ W-44 Eye distress signal jammed. 17213_ Slug penetrates Veteran 7b. 17213_ Veteran 7b destroyed. 17213_ Slug penetrates Wall. 17213_ W-44 Eye distress signal jammed. 17217_ Slug penetrates Garrison Access. 17217_ Penetrated by Slug. LOCATION=GARRISON GOAL=ESCAPE 17219_ Receiving FarCom transmissions... 17239_ Gui. Plasma Cannon destroyed. Map ----- +----------------------------------------------------+ | ?????????????????????????????????????????? | | ?????????????????????????????????????????? | | ?????????????????????????????????????????? | | ????????????????g????????????????????????? | | ?????????????????????????????????????????? | | ?????????????????????????????????????????? | | ?????????????????????????????????????????? | | ?????????????????????????????????????????? | | ?????????????????????????????????????????? | | ?????????????????????????????????????????? | | ?????????????????????????????????????????? | | ?????????????????????????????????????????? | | ?????????????????????????????????????????? | | ?????????????????????????????????????????? | | ?????????????????????????????????????????? | | ?????????????????????????????????????????? | | ?????????????????????????????????????????? | | ?????????????????????????????????????????? | | ?????????????????????????????????????????? | | ?????????????????????????????????????????? | | ?????????????????????????????????????????? | | ?????????????????#####???????????????????? | | ???Y?????????????# #???????????????????? | | ????"## ######### ###########?????????? | | p ^#?????????? | | p @ #?????????? | | ???########################## #?????????? | | ???????????????????????????????#?????????? | | ?????????????????????????????????????????? | | ???????????????????????????Y?????????????? | | ?????????????????????????????????????????? | | ???????????????????????????Y?????????????? | | ?????????????????????????????????????????? | | ?????????????????????????????????????????? | | ?????????????????????????????????????????? | | ?????????????????????????????????????????? | | ?????????????????????????????????????????? | | ?????????????????????????????????????????? | | ?????????????????????????????????????????? | | ?????????????????????????????????????????? | | ?????????????????????????????????????????? | | ??????????????????????????????????gg?????? | | ?????????????????????????????????????????? | | ?????????????????????????????????????????? | | ?????????????????????????????????????????? | | ?????????????????????????????????????????? | | ?????????????????????????????????????????? | | ?????????????????????????????????????????? | | ?????????????????????????????????????????? | | | +----------------------------------------------------+ Best States ------------- Heat Dissipation 102 Energy Generation 25 Energy Capacity 310 Matter Stores 300 Matter Capacity 300 Sight Range 22 Terrain Scan Density 10 Base Temperature (-) 150 Armor Coverage 600 Evasion (%) 55 Targeting Accuracy 8 Target Analysis 5 Core Analysis 6 Recoil Reduction 4 Kinecelleration 30 Relay Coupler Types 5 Relay Coupler Value 167 Item Schematics ----------------- Remote Datajack | -6/Factory | Hacked Robot Schematics ------------------ None Fabricated ------------ Nothing Repaired ---------- Lgt. Treads | 7% | -10/Materials Hrd. Light Armor Plating | 14% | -10/Materials Lgt. Treads | 56% | -10/Materials Alien Tech Used ----------------- None Achievements -------------- None Challenges ------------ None Game ------ Seed DroneDataCyclogen Manual? 0 Play Time 01:54:48 Cumulative 402.5 hours Start 2025.07.27 @ 09:42:31 End 2025.07.27 @ 12:10:21 Sessions 1 Manual Loads 0 Difficulty Rogue Special Mode None Game No. 267 Rogue 267 Adventurer 0 Explorer 0 Win Type - Total 28 Types 22/0/4/2/0/0/0/0/0/0 Lore% 91 Gallery% 82 Achievement% 68 Wizard Run 0 Options --------- Layout 0 ASCII 1 Keyboard 1 Movement Arrows Keybinds 0 Fullscreen 2 Font 18/Terminus Map View 76x50 Zoom Use 0% Tactical HUD 1 Map Filters NONE Filters NONE Steam 1 RUN: 5cf8b22d-86f4-4896-a307-f8a1847ee8a6